bitfinex/quotes_SOLUSD_20220307
["timestamp","ask_amount","ask_price","bid_price","bid_amount"]
[1646661730340,118.6,85.379,85.301,5.857]
[1646661730540,6.0,85.378,85.301,5.857]
[1646661730740,118.85,85.377,85.301,5.857]
[1646661730940,118.6,85.375,85.301,5.857]
[1646661731141,118.6,85.373,85.283,5.859]
[1646661731340,118.6,85.371,85.283,5.859]
[1646661731542,17.5882,85.36,85.29,17.5892]
[1646661731741,0.25,85.359,85.291,11.859]
[1646661732143,5.859,85.371,85.291,11.859]
[1646661732344,6.25,85.37,85.291,11.859]
[1646661732743,17.8358,85.37,85.3,17.587]
[1646661732945,6.0,85.369,85.301,11.859]
[1646661733144,0.25,85.368,85.301,11.859]
[1646661733344,0.25,85.368,85.302,0.25]
[1646661733543,0.25,85.368,85.303,5.859]
[1646661733743,0.25,85.368,85.304,6.25]
[1646661733944,0.25,85.368,85.31,17.5852]
[1646661734143,0.09,85.36,85.311,6.25]
[1646661734745,0.09,85.36,85.292,5.859]
[1646661734746,0.09,85.36,85.312,6.0]
[1646661734947,0.09,85.36,85.294,5.859]
[1646661735145,17.6776,85.36,85.3,17.5859]
[1646661735445,0.25,85.359,85.301,6.0]
[1646661735647,6.25,85.359,85.301,6.0]
[1646661735845,6.25,85.359,85.292,6.0]
[1646661736246,6.0,85.358,85.292,6.0]
[1646661736449,0.25,85.357,85.292,6.0]
[1646661736645,0.25,85.359,85.292,6.0]
[1646661737247,0.25,85.359,85.293,0.25]
[1646661737647,23.7871,85.36,85.293,0.25]
[1646661737846,6.0,85.359,85.3,17.5875]
[1646661738047,0.25,85.358,85.301,6.25]
[1646661738346,5.859,85.357,85.301,6.25]
[1646661738547,6.25,85.356,85.301,6.25]
[1646661739149,0.25,85.356,85.301,6.25]
[1646661739550,0.09,85.359,85.301,6.25]
[1646661739753,0.09,85.359,85.31,17.5852]
[1646661739954,0.09,85.359,85.311,6.25]
[1646661741256,0.09,85.359,85.32,17.5831]
[1646661741656,0.09,85.359,85.311,0.25]
[1646661741657,0.09,85.359,85.323,0.30286909]
[1646661741855,0.09,85.359,85.35,0.30286909]
[1646661742054,0.09,85.359,85.351,3.03219997]
[1646661742254,0.09,85.359,85.352,0.25]
[1646661742458,0.09,85.359,85.351,3.03219997]
[1646661743865,0.09,85.359,85.347,1.8124523]
[1646661744265,6.75,85.359,85.347,0.0024523]
[1646661744467,6.25,85.358,85.347,0.0024523]
[1646661745073,0.25,85.358,85.347,0.0024523]
[1646661745669,0.09,85.359,85.347,0.0024523]
[1646661746877,0.12,85.359,85.347,0.0024523]
[1646661747478,6.37,85.359,85.347,0.0024523]
[1646661749380,6.28,85.359,85.347,0.0024523]
[1646661750878,5.857,85.358,85.347,0.0024523]
[1646661751079,6.25,85.357,85.347,0.0024523]
[1646661751482,0.25,85.357,85.347,0.0024523]
[1646661751681,0.03,85.359,85.347,0.0024523]
[1646661753082,0.12,85.368,85.347,0.0024523]
[1646661754786,5.857,85.367,85.347,0.0024523]
[1646661754986,6.0,85.366,85.347,0.0024523]
[1646661755187,5.857,85.365,85.347,0.0024523]
[1646661755390,6.0,85.364,85.347,0.0024523]
[1646661755987,0.25,85.365,85.347,0.0024523]
[1646661756190,0.12,85.368,85.347,0.0024523]
[1646661757687,0.12,85.368,85.35,0.61051141]
[1646661758489,6.12,85.368,85.35,0.61051141]
[1646661758691,0.25,85.367,85.35,0.61051141]
[1646661758891,120.0,85.366,85.347,0.0024523]
[1646661759092,12.107,85.365,85.347,0.0024523]
[1646661759290,35.5291,85.365,85.347,0.0024523]
[1646661759492,38.36523526,85.365,85.347,0.00638876]
[1646661759693,2.83613526,85.364,85.347,0.00638876]
[1646661759892,17.588,85.36,85.347,0.00638876]
[1646661760093,12.107,85.359,85.347,0.00638876]
[1646661760293,14.94313526,85.359,85.347,0.00638876]
[1646661760498,2.83613526,85.358,85.347,0.00638876]
[1646661760694,12.107,85.357,85.347,0.00638876]
[1646661761093,2.83613526,85.356,85.347,0.00638876]
[1646661761296,6.25,85.355,85.347,0.00638876]
[1646661761793,5.858,85.354,85.347,0.00638876]
[1646661761992,6.25,85.353,85.347,0.00638876]
[1646661762395,5.857,85.352,85.347,0.00638876]
[1646661762597,6.25,85.351,85.347,0.00638876]
[1646661762896,5.857,85.35,85.347,0.00638876]
[1646661763098,6.25,85.349,85.347,0.00638876]
[1646661763496,0.25,85.349,85.347,0.00638876]
[1646661764295,6.25,85.356,85.347,0.00638876]
[1646661764499,0.03,85.355,85.347,0.00638876]
[1646661764696,0.25,85.356,85.347,0.00638876]
[1646661764896,0.25,85.358,85.347,0.00638876]
[1646661765096,0.03,85.355,85.347,0.00638876]
[1646661770304,0.25,85.357,85.347,0.00638876]
[1646661771703,0.28,85.358,85.347,0.00638876]
[1646661774004,118.88,85.358,85.347,0.00638876]
[1646661774204,118.6,85.356,85.347,0.00638876]
[1646661774503,118.6,85.354,85.302,0.25]
[1646661774705,118.6,85.352,85.302,0.25]
[1646661774905,124.85,85.351,85.302,0.25]
[1646661775105,6.25,85.351,85.302,0.25]
[1646661775505,17.5919,85.35,85.287,0.25]
[1646661775706,6.25,85.349,85.287,0.25]
[1646661776105,6.25,85.349,85.283,6.11]
[1646661776304,6.25,85.349,85.284,6.0]
[1646661776514,118.6,85.339,85.284,6.0]
[1646661776706,118.6,85.337,85.284,6.0]
[1646661776906,6.25,85.336,85.266,6.0]
[1646661777111,6.25,85.336,85.267,5.861]
[1646661777310,118.6,85.335,85.268,6.0]
[1646661777509,118.6,85.329,85.268,6.0]
[1646661777709,17.6,85.32,85.254,6.0]
[1646661777910,6.25,85.319,85.255,5.862]
[1646661778209,6.0,85.319,85.256,6.0]
[1646661778511,6.0,85.319,85.257,5.862]
[1646661778809,6.0,85.32,85.258,5.75]
[1646661779008,118.6,85.326,85.258,5.75]
[1646661779209,8.69813526,85.328,85.258,0.25]
[1646661779210,6.0,85.325,85.258,0.25]
[1646661779409,6.0,85.325,85.254,0.25]
[1646661779710,0.25,85.324,85.254,0.25]
[1646661780510,0.25,85.324,85.255,5.862]
[1646661780710,6.25,85.328,85.256,6.25]
[1646661780916,6.25,85.328,85.257,5.862]
[1646661781114,6.25,85.328,85.258,6.25]
[1646661781312,6.25,85.328,85.26,17.5959]
[1646661781514,6.0,85.328,85.261,12.112]
[1646661781810,5.862,85.327,85.261,6.25]
[1646661782012,16.85,85.33,85.262,5.862]
[1646661782211,16.85,85.33,85.263,6.25]
[1646661782412,16.85,85.33,85.264,5.861]
[1646661782611,5.861,85.329,85.27,17.5941]
[1646661782816,5.861,85.329,85.271,6.25]
[1646661783215,5.861,85.329,85.271,0.25]
[1646661783819,5.861,85.329,85.264,0.25]
[1646661784026,5.611,85.329,85.264,0.25]
[1646661784629,5.641,85.329,85.264,0.25]
[1646661784927,5.731,85.329,85.264,0.25]
[1646661785128,0.12,85.329,85.27,17.5939]
[1646661785326,0.37,85.329,85.271,6.25]
[1646661786029,0.12,85.329,85.271,0.25]
[1646661786232,0.12,85.329,85.28,17.5921]
[1646661786428,0.12,85.329,85.281,6.25]
[1646661787129,0.12,85.329,85.281,0.25]
[1646661787630,0.12,85.329,85.269,6.25]
[1646661787833,0.12,85.329,85.27,6.0]
[1646661788035,0.12,85.329,85.271,0.25]
[1646661788234,0.12,85.329,85.269,0.25]
[1646661788235,0.12,85.329,85.29,17.5897]
[1646661788435,0.12,85.329,85.291,0.25]
[1646661790134,0.09,85.329,85.291,0.25]
[1646661790737,0.06,85.329,85.291,0.25]
[1646661790936,0.03,85.329,85.291,0.25]
[1646661791137,0.03,85.329,85.3,17.588]
[1646661791342,0.03,85.329,85.301,0.25]
[1646661792340,0.03,85.329,85.291,0.25]
[1646661792939,0.03,85.329,85.282,23.9635]
[1646661792940,0.03,85.329,85.283,6.25]
[1646661793142,0.03,85.329,85.3,17.5878]
[1646661793339,0.03,85.329,85.301,0.25]
[1646661793743,0.03,85.329,85.301,6.79]
[1646661794044,0.03,85.329,85.303,0.17493276]
[1646661794242,0.03,85.329,85.31,17.5858]
[1646661794439,0.03,85.329,85.311,6.25]
[1646661794842,0.03,85.329,85.312,22.6367]
[1646661795041,0.03,85.329,85.313,6.25]
[1646661797046,0.15,85.336,85.313,6.25]
[1646661797548,0.15,85.336,85.312,22.6367]
[1646661798349,0.15,85.336,85.262,100.0]
[1646661798350,0.15,85.336,85.28,17.5915]
[1646661798549,0.15,85.336,85.263,24.784]
[1646661798751,0.15,85.336,85.264,6.0]
[1646661798949,118.6,85.334,85.263,24.784]
[1646661799153,118.6,85.332,85.263,24.784]
[1646661799350,118.6,85.329,85.24,17.5998]
[1646661799553,16.85,85.32,85.239,100.0]
[1646661799750,118.6,85.317,85.239,100.0]
[1646661799949,43.550226,85.318,85.239,100.0]
[1646661799950,118.6,85.315,85.239,100.0]
[1646661800151,118.6,85.313,85.239,100.0]
[1646661800351,118.6,85.309,85.239,100.0]
[1646661800550,118.6,85.307,85.239,100.0]
[1646661800753,118.6,85.305,85.239,100.0]
[1646661800951,118.6,85.303,85.239,100.0]
[1646661801151,118.6,85.299,85.239,100.0]
[1646661801351,118.6,85.297,85.217,24.784]
[1646661801552,118.6,85.289,85.218,6.0]
[1646661801754,118.6,85.287,85.217,6.0]
[1646661801951,118.6,85.285,85.217,6.0]
[1646661802153,118.6,85.283,85.217,6.0]
[1646661802353,118.6,85.281,85.211,6.0]
[1646661802554,118.6,85.279,85.2,23.6082]
[1646661802755,12.115,85.278,85.2,23.6082]
[1646661804156,17.6083,85.27,85.2,23.6082]
[1646661804359,12.115,85.269,85.2,6.0]
[1646661804556,12.115,85.269,85.198,6.0]
[1646661805157,2.83613526,85.268,85.198,6.0]
[1646661805358,17.6108,85.26,85.198,6.0]
[1646661805559,42.86328879,85.258,85.198,6.0]
[1646661805758,12.115,85.257,85.199,0.25]
[1646661805960,12.115,85.257,85.192,0.25]
[1646661806158,12.115,85.257,85.191,0.25]
[1646661806562,12.115,85.257,85.19,17.6105]
[1646661807259,12.115,85.257,85.191,6.0]
[1646661807761,12.115,85.257,85.192,0.25]
[1646661809160,12.115,85.257,85.16,21.78332724]
[1646661809161,5.12555831,85.248,85.16,21.78332724]
[1646661809363,5.12555831,85.248,85.132,48.7245]
[1646661809364,118.6,85.239,85.132,48.7245]
[1646661809564,118.6,85.237,85.142,100.0]
[1646661809863,12.53649577,85.236,85.142,100.0]
[1646661810062,12.53649577,85.236,85.137,118.6]
[1646661810262,6.66749577,85.236,85.15,118.6]
[1646661810562,0.25,85.236,85.152,118.6]
[1646661810764,6.25,85.255,85.154,118.6]
[1646661810966,5.868,85.254,85.17,17.6075]
[1646661811265,5.868,85.254,85.172,118.6]
[1646661811466,0.06,85.257,85.172,118.6]
[1646661811467,0.06,85.257,85.174,118.6]
[1646661811666,0.06,85.257,85.176,118.6]
[1646661811865,0.06,85.257,85.181,118.6]
[1646661812069,0.06,85.257,85.18,16.85]
[1646661812070,0.06,85.257,85.205,100.0]
[1646661812266,0.06,85.257,85.206,6.25]
[1646661812465,0.15,85.258,85.207,118.6]
[1646661812667,0.15,85.258,85.209,118.6]
[1646661812866,0.15,85.258,85.21,6.25]
[1646661813668,0.15,85.258,85.21,0.25]
[1646661813868,0.15,85.258,85.21,23.8539]
[1646661814673,0.15,85.258,85.21,47.6839]
[1646661814868,527.3019529,85.269,85.212,0.18797548]
[1646661815071,527.3019529,85.269,85.221,58.68207531]
[1646661815369,527.3019529,85.269,85.26,100.0]
[1646661815569,527.3019529,85.269,85.261,6.3370026]
[1646661816369,527.3019529,85.269,85.262,6.0]
[1646661816577,482.5734529,85.269,85.263,0.25]
[1646661816773,482.5734529,85.269,85.261,0.3370026]
[1646661816774,482.5734529,85.269,85.262,100.0]
[1646661816975,482.5734529,85.269,85.263,6.25]
[1646661818573,482.5734529,85.269,85.263,0.25]
[1646661818775,482.5734529,85.269,85.261,0.0870026]
[1646661820476,482.5734529,85.269,85.23,100.0]
[1646661820875,482.5734529,85.269,85.231,6.0]
[1646661821077,482.5734529,85.269,85.23,100.0]
[1646661821498,482.5734529,85.269,85.23,17.6012]
[1646661821698,482.5734529,85.269,85.2,107.2397]
[1646661821896,0.25,85.268,85.201,6.0]
[1646661822299,38.6430772,85.267,85.192,6.0]
[1646661822497,6.25,85.266,85.192,6.0]
[1646661822698,6.25,85.266,85.183,118.6]
[1646661823097,6.25,85.266,85.2,17.6074]
[1646661823896,6.25,85.266,85.184,29.08796999]
[1646661823897,6.25,85.266,85.201,6.0]
[1646661824096,6.25,85.266,85.21,17.6054]
[1646661825496,6.25,85.266,85.211,0.25]
[1646661825698,5.865,85.265,85.22,17.6034]
[1646661825997,5.865,85.266,85.221,0.25]
[1646661826198,38.6430772,85.267,85.221,0.25]
[1646661826599,482.5734529,85.269,85.23,17.6015]
[1646661826798,482.5734529,85.269,85.231,124.85]
[1646661827199,389.5719529,85.269,85.257,100.0]
[1646661827403,389.5719529,85.269,85.258,6.25]
[1646661827601,389.5719529,85.269,85.259,118.6]
[1646661827800,389.5719529,85.269,85.261,118.6]
[1646661827999,389.5719529,85.269,85.262,6.25]
[1646661828201,389.5719529,85.269,85.263,0.25]
[1646661828408,389.5719529,85.269,85.26,0.25]
[1646661829201,389.5719529,85.269,85.261,1.6210588]
[1646661829401,389.5719529,85.269,85.262,0.25]
[1646661831102,389.5719529,85.269,85.263,1.62102078]
[1646661831303,389.5719529,85.269,85.264,0.25]
[1646661835306,389.5719529,85.269,85.265,118.6]
[1646661835606,389.5719529,85.269,85.267,118.6]
[1646661835806,389.5719529,85.269,85.268,6.25]
[1646661836206,389.5719529,85.269,85.268,0.25]
[1646661836708,389.5719529,85.269,85.265,0.25]
[1646661837108,389.5719529,85.269,85.264,6.25]
[1646661837508,376.70532223,85.269,85.264,6.25]
[1646661837710,331.1319529,85.269,85.267,100.0]
[1646661837908,331.1319529,85.269,85.268,6.25]
[1646661838108,331.1319529,85.269,85.264,6.25]
[1646661839408,331.1319529,85.269,85.265,118.6]
[1646661839610,331.1319529,85.269,85.267,118.6]
[1646661839808,331.1319529,85.269,85.268,124.85]
[1646661840213,192.89028027,85.269,85.268,124.85]
[1646661840512,5.863,85.368,85.271,0.19489817]
[1646661840711,6.0,85.367,85.303,118.6]
[1646661840914,5.859,85.366,85.305,118.6]
[1646661841111,5.859,85.366,85.306,124.85]
[1646661841313,5.859,85.369,85.306,124.85]
[1646661841614,47.1526,85.378,85.321,118.6]
[1646661841814,47.1526,85.378,85.323,118.6]
[1646661842013,5.857,85.377,85.325,118.6]
[1646661842214,5.857,85.377,85.326,124.85]
[1646661842415,5.857,85.408,85.331,118.6]
[1646661842614,1.55377533,85.423,85.351,118.6]
[1646661842815,1.55377533,85.423,85.35,17.5675]
[1646661842816,47.3646,85.425,85.353,118.6]
[1646661843013,47.3646,85.425,85.355,118.6]
[1646661843014,5.855,85.424,85.355,118.6]
[1646661843314,5.855,85.424,85.36,16.85]
[1646661843514,5.855,85.424,85.37,17.5678]
[1646661843816,47.3646,85.425,85.372,118.6]
[1646661844015,1.55377533,85.445,85.374,118.6]
[1646661844221,1.55377533,85.445,85.376,118.6]
[1646661844417,1.55377533,85.487,85.391,118.6]
[1646661844619,1.55377533,85.487,85.42,17.5487]
[1646661844819,41.0525179,85.493,85.43,16.85]
[1646661845016,41.0525179,85.493,85.432,0.24970303]
[1646661845420,1.55377533,85.496,85.432,118.84970303]
[1646661845617,1.55377533,85.508,85.441,118.6]
[1646661845819,5.849,85.519,85.451,118.6]
[1646661846018,103.15258426,85.581,85.45,16.85]
[1646661846019,5.848,85.542,85.454,0.24970303]
[1646661846218,5.848,85.542,85.456,0.24970303]
[1646661846418,5.848,85.558,85.491,118.6]
[1646661846619,1.55377533,85.567,85.501,118.6]
[1646661846818,198.52685919,85.559,85.511,118.6]
[1646661847019,181.12885919,85.559,85.521,118.6]
[1646661847317,181.12885919,85.559,85.523,0.45010969]
[1646661848120,181.12885919,85.559,85.53,58.4284]
[1646661848319,5.844,85.655,85.541,118.6]
[1646661848522,5.844,85.655,85.54,16.85]
[1646661848523,36.99760153,85.654,85.551,118.6]
[1646661848718,36.99760153,85.654,85.561,118.6]
[1646661848922,36.99760153,85.654,85.563,118.6]
[1646661849118,36.99760153,85.654,85.564,6.25]
[1646661849319,5.84,85.653,85.564,6.0]
[1646661849519,5.84,85.653,85.56,16.85]
[1646661849718,8.67613526,85.653,85.561,6.0]
[1646661849918,5.84,85.653,85.561,6.0]
[1646661850120,24.5241,85.656,85.562,118.6]
[1646661850422,24.5241,85.656,85.581,118.6]
[1646661850719,24.5241,85.656,85.591,118.6]
[1646661850922,24.5241,85.656,85.592,6.25]
[1646661851521,24.5241,85.656,85.592,0.25]
[1646661852020,24.5241,85.656,85.591,6.0]
[1646661852222,17.5327,85.65,85.591,6.0]
[1646661852423,37.93029831,85.648,85.59,16.85]
[1646661852623,0.25,85.647,85.591,6.0]
[1646661852823,37.93029831,85.648,85.59,16.85]
[1646661853223,37.93029831,85.648,85.555,31.55186797]
[1646661853224,37.93029831,85.648,85.564,118.6]
[1646661853423,37.93029831,85.648,85.563,30.56339941]
[1646661853424,37.93029831,85.648,85.575,31.55186797]
[1646661853626,24.5241,85.656,85.591,118.6]
[1646661853923,24.5241,85.656,85.593,0.21275049]
[1646661854125,5.839,85.698,85.594,118.6]
[1646661854327,1.55377533,85.798,85.594,118.6]
[1646661854328,5.837,85.703,85.597,0.35397802]
[1646661854528,5.837,85.712,85.625,0.35397802]
[1646661854826,45.829106,85.715,85.631,0.35397802]
[1646661855026,45.829106,85.715,85.631,6.60397802]
[1646661855248,42.19482385,85.7,85.631,6.60397802]
[1646661855448,42.19482385,85.7,85.631,6.25]
[1646661856249,5.836,85.699,85.631,6.25]
[1646661856450,5.836,85.739,85.631,6.25]
[1646661856651,2.83613526,85.74,85.631,12.51]
[1646661857251,0.25,85.712,85.631,6.25]
[1646661857450,5.836,85.711,85.631,0.25]
[1646661857654,0.25,85.71,85.631,6.25]
[1646661857951,76.67174786,85.859,85.65,175.61]
[1646661858154,100.0,85.829,85.713,29.98999999]
[1646661858454,14.05,85.84,85.715,0.54432602]
[1646661858652,10.17726312,85.839,85.715,0.54432602]
[1646661858851,46.0066398,85.838,85.72,14.05]
[1646661859052,5.828,85.837,85.722,0.54432602]
[1646661859252,4.61496227,85.836,85.721,6.25]
[1646661859452,124.428,85.835,85.713,29.98999999]
[1646661859652,14.05,85.82,85.713,29.98999999]
[1646661859851,14.05,85.82,85.714,0.25]
[1646661859852,36.06951271,85.818,85.714,0.25]
[1646661860052,0.22418276,85.816,85.714,0.25]
[1646661860252,5.829,85.815,85.714,0.25]
[1646661860452,14.05,85.8,85.714,0.25]
[1646661860651,34.68592233,85.798,85.714,0.25]
[1646661860856,17.5099,85.79,85.714,0.25]
[1646661861053,0.28449319,85.788,85.714,0.25]
[1646661861252,0.31329268,85.786,85.714,0.25]
[1646661861458,41.09375832,85.785,85.714,0.25]
[1646661861656,0.31329268,85.783,85.714,0.25]
[1646661861853,5.831,85.782,85.714,0.25]
[1646661862052,0.31329268,85.78,85.714,0.25]
[1646661862252,5.831,85.779,85.714,0.25]
[1646661862454,6.25,85.778,85.714,0.25]
[1646661862654,5.831,85.777,85.714,0.25]
[1646661862859,6.25,85.776,85.714,0.25]
[1646661863058,5.831,85.775,85.714,0.25]
[1646661863257,6.25,85.774,85.714,0.25]
[1646661863859,6.0,85.773,85.681,6.25]
[1646661864059,0.25,85.772,85.69,14.05]
[1646661864258,6.0,85.781,85.691,6.25]
[1646661864460,5.831,85.78,85.691,6.25]
[1646661864659,6.0,85.779,85.691,6.25]
[1646661864858,5.831,85.778,85.691,6.25]
[1646661865059,6.0,85.777,85.691,6.25]
[1646661865267,5.831,85.776,85.691,6.25]
[1646661865459,6.25,85.775,85.691,6.25]
[1646661865660,5.832,85.774,85.691,6.25]
[1646661865869,34.4745137,85.772,85.677,100.0]
[1646661866064,0.28101033,85.77,85.677,100.0]
[1646661866462,0.28101033,85.768,85.677,100.0]
[1646661866662,5.832,85.767,85.677,100.0]
[1646661866869,0.28101033,85.765,85.67,14.05]
[1646661867165,0.28101033,85.763,85.67,14.05]
[1646661867365,5.833,85.762,85.671,0.25]
[1646661867665,6.25,85.761,85.671,0.25]
[1646661867864,41.77858302,85.759,85.671,0.25]
[1646661868067,12.083,85.758,85.671,6.25]
[1646661868268,6.25,85.758,85.671,6.25]
[1646661869265,5.833,85.757,85.671,6.25]
[1646661869465,6.25,85.756,85.671,6.25]
[1646661869667,5.833,85.755,85.671,6.25]
[1646661869966,6.25,85.754,85.671,6.25]
[1646661870166,6.0,85.754,85.671,6.25]
[1646661870367,0.15662992,85.752,85.671,6.25]
[1646661870568,6.15662992,85.752,85.671,6.25]
[1646661870770,0.15662992,85.75,85.671,6.25]
[1646661871174,0.15662992,85.748,85.671,6.25]
[1646661871371,6.25,85.748,85.671,6.25]
[1646661871971,0.25,85.748,85.671,6.25]
[1646661872573,0.14788255,85.751,85.671,6.25]
[1646661872774,0.14788255,85.749,85.671,6.0]
[1646661872975,0.14788255,85.747,85.671,6.0]
[1646661873174,118.6,85.744,85.67,14.05]
[1646661873473,130.683,85.743,85.67,14.05]
[1646661873874,130.683,85.743,85.65,14.05]
[1646661874074,0.26403513,85.742,85.61,17.5162]
[1646661874274,0.26403513,85.739,85.621,118.6]
[1646661874474,1.55377533,85.734,85.627,100.0]
[1646661874774,36.26928358,85.732,85.63,14.05]
[1646661874974,12.085,85.731,85.631,6.0]
[1646661875375,12.085,85.731,85.632,118.85]
[1646661875575,6.25,85.731,85.634,118.6]
[1646661875776,1.55377533,85.705,85.636,118.6]
[1646661875977,42.56057809,85.704,85.64,14.05]
[1646661876180,42.56057809,85.704,85.641,6.25]
[1646661877781,1.55377533,85.703,85.641,6.25]
[1646661877980,1.55377533,85.702,85.641,6.25]
[1646661878180,1.55377533,85.701,85.641,6.25]
[1646661878381,1.55377533,85.701,85.642,118.6]
[1646661878686,1.55377533,85.706,85.645,0.13492382]
[1646661878880,0.25,85.705,85.647,0.18317351]
[1646661879080,0.25,85.705,85.65,14.05]
[1646661879280,1.55377533,85.7,85.651,6.25]
[1646661879482,1.55377533,85.699,85.651,6.25]
[1646661879981,1.55377533,85.698,85.651,6.25]
[1646661880382,1.55377533,85.697,85.651,6.25]
[1646661880783,1.55377533,85.696,85.651,6.25]
[1646661880983,1.55377533,85.697,85.651,0.25]
[1646661881184,1.55377533,85.697,85.632,0.25]
[1646661881386,1.55377533,85.691,85.632,0.25]
[1646661881607,44.67782982,85.69,85.632,0.25]
[1646661882404,43.12405449,85.69,85.632,0.25]
[1646661883003,43.12405449,85.69,85.633,0.18987456]
[1646661883206,1.55377533,85.691,85.641,118.6]
[1646661883406,1.55377533,85.718,85.651,118.6]
[1646661883605,0.50200773,85.718,85.654,0.47833233]
[1646661883806,0.50200773,85.724,85.659,118.6]
[1646661884004,0.50200773,85.724,85.671,118.6]
[1646661884204,5.835,85.764,85.68,17.5032]
[1646661884205,6.36481548,85.737,85.68,17.5032]
[1646661884405,3.15258426,85.753,85.69,14.05]
[1646661884609,6.36332983,85.764,85.692,0.47833233]
[1646661884805,9.51591409,85.765,85.692,0.47833233]
[1646661885206,47.84964187,85.764,85.692,0.47833233]
[1646661885407,51.00222613,85.764,85.691,6.25]
[1646661885607,6.36332983,85.763,85.691,6.25]
[1646661885906,3.15258426,85.76,85.691,6.25]
[1646661886105,3.15258426,85.757,85.691,6.25]
[1646661886308,3.15258426,85.756,85.691,6.25]
[1646661886507,3.15258426,85.753,85.691,6.25]
[1646661886710,3.15258426,85.75,85.691,6.0]
[1646661887008,3.15258426,85.746,85.67,14.05]
[1646661887209,17.5135,85.74,85.671,6.0]
[1646661887408,3.15258426,85.735,85.661,6.0]
[1646661887607,118.6,85.744,85.651,6.0]
[1646661887608,3.15258426,85.732,85.651,6.0]
[1646661887808,121.75258426,85.73,85.65,14.05]
[1646661888008,3.15258426,85.724,85.651,6.0]
[1646661888308,3.15258426,85.722,85.651,6.0]
[1646661888508,40.73928209,85.719,85.651,6.0]
[1646661888709,12.61332983,85.718,85.64,14.05]
[1646661888912,6.36332983,85.717,85.64,14.05]
[1646661889108,118.6,85.715,85.62,31.5665]
[1646661889311,118.6,85.713,85.62,131.5665]
[1646661889509,6.25,85.712,85.62,31.5665]
[1646661889809,17.5181,85.71,85.62,58.25634447]
[1646661890009,18.44932983,85.709,85.621,6.0]
[1646661890209,6.36332983,85.708,85.63,17.5163]
[1646661890409,45.99516032,85.706,85.631,6.25]
[1646661890612,12.086,85.705,85.631,6.25]
[1646661890811,18.44932983,85.705,85.631,6.25]
[1646661891011,6.36332983,85.704,85.631,6.25]
[1646661891210,6.086,85.703,85.631,6.25]
[1646661891611,5.836,85.703,85.632,118.6]
[1646661891812,45.99516032,85.706,85.64,17.5135]
[1646661892010,45.99516032,85.706,85.641,6.25]
[1646661892813,6.0,85.705,85.641,6.0]
[1646661893013,0.25,85.704,85.609,25.13461259]
[1646661893313,5.837,85.703,85.61,163.53411847]
[1646661893514,12.61732605,85.702,85.62,14.05]